{"text_format":"3","workbook":"xlsx","n_sheets":2,"sheets":["Početak","Profitabilnost klijenta"],"not_rendered":{"charts":1},"read":"whole","date_system":"1900"}

{"sheet":"Početak","index":0,"n_rows":7,"n_cols":2,"rows_kept":7}
[null,"OSNOVNI PODACI O OVOM PREDLOŠKU"]
[null,"Koristite ovu analiza profitabilnosti klijenata da biste pratili aktivnost klijenta, cenu prodaje i drugi troškovi."]
[null,"U tabele unesite informacije kao što su ime preduzeća i datum i detalji."]
[null,"Vrednosti u ćelijama koje sadrže formule i tabela „Rezime metrike“ automatski se izračunavaju i grafikon se ažurira."]
[null,"Beleška:  "]
[null,"Dodatna uputstva su navedena u koloni A na radnom listu „PROFITABILNOST KLIJENAT“. Taj tekst je namerno skriven. Da biste uklonili tekst, izaberite kolonu A, a zatim izaberite stavku „IZBRIŠI“. Da biste otkrili tekst, izaberite kolonu A, a zatim promenite boju fonta."]
[null,"Da biste saznali više o tabelama na ovom radnom listu, pritisnite taster SHIFT, a zatim unutar tabele pritisnite taster F10, izaberite opciju „TABELA“, a zatim stavku „ALTERNATIVNI TEKST“."]

{"sheet":"Profitabilnost klijenta","index":1,"n_rows":37,"n_cols":6,"rows_kept":37,"merged":[[36,1,36,5]]}
["Napravite analiza profitabilnosti klijenata na ovom radnom listu. Korisna uputstva o tome kako da koristite ovaj radni list nalaze se u ćelijama u ovoj koloni. Pritisnite strelicu nadole da biste počeli."]
["Unesite ime preduzeća u ćeliju sa desne strane.","Ime preduzeća"]
["Naslov ovog radnog lista nalazi se u ćeliji sa desne strane.","Analiza profitabilnosti klijenata"]
["Datum unesite u ćeliju sa desne strane.","Datum"]
["Savet se nalazi u ćeliji sa desne strane.","Sive ćelije se izračunavaju za vas. Ne morate ništa da unosite u njih."]
["Unesite detalje u tabelu „Aktivnost klijenta“ počevši od ćelije sa desne strane. Sledeće uputstvo se nalazi u ćeliji A12.","Aktivnost klijenta:","Ime 1. segmenta","Ime 2. segmenta","Ime 3. segmenta","Ukupno"]
[null,"Broj aktivnih klijenata – početak perioda",5,8,8,{"$f":"SUM(C7:E7)","v":21}]
[null,"Broj dodatih klijenata",2,4,4,{"$f":"SUM(C8:E8)","v":10}]
[null,"Broj izgubljenih/obustavljenih klijenata",{"v":-1,"d":"-1 "},{"v":-2,"d":"-2 "},{"v":-2,"d":"-2 "},{"$f":"SUM(C9:E9)","v":{"v":-5,"d":"-5 "}}]
[null,"Broj aktivnih klijenata – završetak perioda",{"$f":"SUBTOTAL(109,AktivnostKlijenta[Ime 1. segmenta])","v":6},{"$f":"SUBTOTAL(109,AktivnostKlijenta[Ime 2. segmenta])","v":10},{"$f":"SUBTOTAL(109,AktivnostKlijenta[Ime 3. segmenta])","v":10},{"$f":"SUBTOTAL(109,AktivnostKlijenta[Ukupno])","v":26}]
[]
["Unesite detalje u tabelu „Analiza profitabilnosti“ počevši od ćelije sa desne strane. Sledeće uputstvo se nalazi u ćeliji A16.","Analiza profitabilnosti:","Ime 1. segmenta","Ime 2. segmenta","Ime 3. segmenta","Ukupno"]
[null,"Prihod po segmentu",{"v":1500000,"d":"1,500,000.00 RSD"},{"v":1800000,"d":"1,800,000.00 RSD"},{"v":2500000,"d":"2,500,000.00 RSD"},{"$f":"SUM(AnalizaProfitabilnosti[[#This Row],[Ime 1. segmenta]:[Ime 3. segmenta]])","v":{"v":5800000,"d":"5,800,000.00 RSD"}}]
[null,"Stepen važnosti",{"$f":"+C13/$F$13","v":{"v":0.25862068965517243,"d":"26%"}},{"$f":"+D13/$F$13","v":{"v":0.3103448275862069,"d":"31%"}},{"$f":"+E13/$F$13","v":{"v":0.43103448275862066,"d":"43%"}},{"$f":"SUM(AnalizaProfitabilnosti[[#This Row],[Ime 1. segmenta]:[Ime 3. segmenta]])","v":{"v":1,"d":"100%"}}]
[]
["Unesite detalje u tabelu „Cena prodaje“ počevši od ćelije sa desne strane. Sledeće uputstvo se nalazi u ćeliji A23.","Cena prodaje:","Ime 1. segmenta","Ime 2. segmenta","Ime 3. segmenta","Ukupno"]
[null,"Tekući troškovi usluge i podrške",{"v":1000000,"d":"1,000,000.00 RSD"},{"v":1400000,"d":"1,400,000.00 RSD"},{"v":1400000,"d":"1,400,000.00 RSD"},{"$f":"SUM(C17:E17)","v":{"v":3800000,"d":"3,800,000.00 RSD"}}]
[null,"Drugi direktni troškovi klijenta",{"v":200000,"d":"200,000.00 RSD"},{"v":100000,"d":"100,000.00 RSD"},{"v":100000,"d":"100,000.00 RSD"},{"$f":"SUM(C18:E18)","v":{"v":400000,"d":"400,000.00 RSD"}}]
[null,"Ukupna cena prodaje",{"$f":"SUM(C17:C18)","v":{"v":1200000,"d":"1,200,000.00 RSD"}},{"$f":"SUM(D17:D18)","v":{"v":1500000,"d":"1,500,000.00 RSD"}},{"$f":"SUM(E17:E18)","v":{"v":1500000,"d":"1,500,000.00 RSD"}},{"$f":"SUM(F17:F18)","v":{"v":4200000,"d":"4,200,000.00 RSD"}}]
[null,"Bruto marža",{"$f":"+C13-C19","v":{"v":300000,"d":"300,000.00 RSD"}},{"$f":"+D13-D19","v":{"v":300000,"d":"300,000.00 RSD"}},{"$f":"+E13-E19","v":{"v":1000000,"d":"1,000,000.00 RSD"}},{"$f":"+F13-F19","v":{"v":1600000,"d":"1,600,000.00 RSD"}}]
[null,"Stepen važnosti",{"$f":"MAX(0, MIN(1,C20/$F$20))","v":{"v":0.1875,"d":"19%"}},{"$f":"MAX(0, MIN(1,D20/$F$20))","v":{"v":0.1875,"d":"19%"}},{"$f":"MAX(0, MIN(1,E20/$F$20))","v":{"v":0.625,"d":"63%"}},{"$f":"SUM(C21:E21)","v":{"v":1,"d":"100%"}}]
[]
["Unesite detalje u tabelu „Drugi troškovi“ počevši od ćelije sa desne strane. Sledeće uputstvo se nalazi u ćeliji A31.","Drugi troškovi:","Ime 1. segmenta","Ime 2. segmenta","Ime 3. segmenta","Ukupno"]
[null,"Pronalaženje klijenata",{"v":105000,"d":"105,000.00 RSD"},{"v":120000,"d":"120,000.00 RSD"},{"v":235000,"d":"235,000.00 RSD"},{"$f":"SUM(DrugiTroškovi[[#This Row],[Ime 1. segmenta]:[Ime 3. segmenta]])","v":{"v":460000,"d":"460,000.00 RSD"}}]
[null,"Marketing za klijente",{"v":150000,"d":"150,000.00 RSD"},{"v":125000,"d":"125,000.00 RSD"},{"v":275000,"d":"275,000.00 RSD"},{"$f":"SUM(C25:E25)","v":{"v":550000,"d":"550,000.00 RSD"}}]
[null,"Obustavljanje klijenata",{"v":80000,"d":"80,000.00 RSD"},{"v":190000,"d":"190,000.00 RSD"},{"v":140000,"d":"140,000.00 RSD"},{"$f":"SUM(C26:E26)","v":{"v":410000,"d":"410,000.00 RSD"}}]
[null,"Ukupni drugi troškovi klijenta",{"$f":"SUM(C24:C26)","v":{"v":335000,"d":"335,000.00 RSD"}},{"$f":"SUM(D24:D26)","v":{"v":435000,"d":"435,000.00 RSD"}},{"$f":"SUM(E24:E26)","v":{"v":650000,"d":"650,000.00 RSD"}},{"$f":"SUM(F24:F26)","v":{"v":1420000,"d":"1,420,000.00 RSD"}}]
[null,"Profit od klijenta po segmentu",{"$f":"+C20-C27","v":{"v":-35000,"d":"-35,000.00 RSD"}},{"$f":"+D20-D27","v":{"v":-135000,"d":"-135,000.00 RSD"}},{"$f":"+E20-E27","v":{"v":350000,"d":"350,000.00 RSD"}},{"$f":"SUM(C28:E28)","v":{"v":180000,"d":"180,000.00 RSD"}}]
[null,"Stepen važnosti",{"$f":"MAX(0,MIN(1, C28/$F$28))","v":{"v":0,"d":"0%"}},{"$f":"MAX(0,MIN(1, D28/$F$28))","v":{"v":0,"d":"0%"}},{"$f":"MAX(0,MIN(1, E28/$F$28))","v":{"v":1,"d":"100%"}},{"$f":"SUM(C29:E29)","v":{"v":1,"d":"100%"}}]
[]
["Tabela „Rezime metrike“ koja počinje od ćelije sa desne strane automatski se ažurira. Sledeće uputstvo se nalazi u ćeliji A37.","Rezime metrike:","Ime 1. segmenta","Ime 2. segmenta","Ime 3. segmenta","Trend"]
[null,"Prosečan trošak po zadobijenom klijentu",{"$f":"+C24/C8","v":{"v":52500,"d":"52,500.00 RSD"}},{"$f":"+D24/D8","v":{"v":30000,"d":"30,000.00 RSD"}},{"$f":"+E24/E8","v":{"v":58750,"d":"58,750.00 RSD"}}]
[null,"Prosečan trošak po obustavljenom klijentu",{"$f":"-C26/C9","v":{"v":80000,"d":"80,000.00 RSD"}},{"$f":"-D26/D9","v":{"v":95000,"d":"95,000.00 RSD"}},{"$f":"-E26/E9","v":{"v":70000,"d":"70,000.00 RSD"}}]
[null,"Prosečan trošak marketinga po aktivnom klijentu",{"$f":"+C26/AktivnostKlijenta[[#Totals],[Ime 1. segmenta]]","v":{"v":13333.333333333334,"d":"13,333.33 RSD"}},{"$f":"+D25/AktivnostKlijenta[[#Totals],[Ime 2. segmenta]]","v":{"v":12500,"d":"12,500.00 RSD"}},{"$f":"+E25/AktivnostKlijenta[[#Totals],[Ime 3. segmenta]]","v":{"v":27500,"d":"27,500.00 RSD"}}]
[null,"Prosečan profit (gubitak) po klijentu",{"$f":"+C29/AktivnostKlijenta[[#Totals],[Ime 1. segmenta]]","v":{"v":0,"d":"0.00 RSD"}},{"$f":"+D28/AktivnostKlijenta[[#Totals],[Ime 2. segmenta]]","v":{"v":-13500,"d":"-13,500.00 RSD"}},{"$f":"+E28/AktivnostKlijenta[[#Totals],[Ime 3. segmenta]]","v":{"v":35000,"d":"35,000.00 RSD"}}]
[]
["Grupisani stubičasti grafikon koji prikazuje rezime metrike po segmentu klijenta nalazi se u ćeliji sa desne strane.","Grupisani stubičasti grafikon koji prikazuje rezime metrike po segmentu klijenta nalazi se u ovoj ćeliji."]